bitfinex/quotes_ETHUSD_20220202
["timestamp","ask_amount","ask_price","bid_price","bid_amount"]
[1643838877256,0.96203966,2630.1,2629.3,0.298]
[1643838877657,0.00568021,2629.7,2629.4,0.00510147]
[1643838878254,0.2285687,2629.7,2629.4,0.00510147]
[1643838878456,0.2285687,2629.7,2628.7,1.9014989]
[1643838878457,0.22288849,2629.7,2628.7,1.9014989]
[1643838878655,0.22288849,2629.7,2628.8,0.448]
[1643838878857,0.22288849,2629.7,2629.4,0.00510147]
[1643838878858,0.2285687,2629.7,2629.4,0.00510147]
[1643838879057,0.2285687,2629.7,2629.4,1.47e-06]
[1643838879058,0.79555678,2629.5,2629.4,1.47e-06]
[1643838879255,3.03630196,2629.5,2629.4,1.47e-06]
[1643838879456,0.38,2629.5,2629.4,1.47e-06]
[1643838879655,0.95114,2629.1,2627.8,4.2626]
[1643838879856,0.95114,2629.1,2627.8,0.448]
[1643838880255,0.67956872,2628.7,2627.8,0.448]
[1643838880455,2.09247,2629.4,2627.8,1.39906]
[1643838880658,0.1902,2629.5,2627.9,2.0152363]
[1643838880856,14.80239,2629.7,2628.0,0.448]
[1643838881105,7.21919,2629.7,2628.0,0.5611944]
[1643838881305,0.00415243,2629.6,2628.1,0.1131944]
[1643838881511,0.00415243,2629.6,2628.2,0.448]
[1643838881512,0.73853455,2629.3,2628.2,0.448]
[1643838881906,0.73853455,2629.3,2628.2,0.748]
[1643838882105,0.73853455,2629.3,2628.4,0.9509228]
[1643838882306,0.73853455,2629.3,2628.5,0.448]
[1643838883006,0.00415266,2629.6,2628.5,0.448]
[1643838883210,0.00415266,2629.6,2628.7,0.0077646]
[1643838883507,0.19,2629.9,2628.8,0.448]
[1643838883709,1.15351429,2630.0,2628.9,2.41448318]
[1643838883710,0.00567963,2629.6,2628.9,2.41448318]
[1643838883908,0.00567963,2629.6,2629.0,0.448]
[1643838884510,0.92280705,2629.7,2629.0,0.448]
[1643838884763,0.16620636,2629.4,2629.2,0.00508911]
[1643838884955,0.00568002,2629.6,2629.2,0.00508911]
[1643838885155,0.00568002,2629.6,2629.3,0.448]
[1643838885354,0.00568002,2629.6,2629.3,0.748]
[1643838885557,0.00568002,2629.6,2629.3,1.05455899]
[1643838885857,0.00275099,2630.6,2629.3,1.16775339]
[1643838886057,0.00275099,2630.6,2629.5,0.0125198]
[1643838886256,0.00275099,2630.6,2629.8,0.9504092]
[1643838886257,0.02215166,2630.2,2629.8,0.9504092]
[1643838886455,0.02215166,2630.2,2629.9,0.448]
[1643838887061,0.17542587,2630.7,2629.9,0.448]
[1643838887256,0.17542587,2630.7,2630.0,0.9504241]
[1643838887456,0.00553885,2630.2,2630.1,2.948]
[1643838887657,0.00553885,2630.2,2630.1,0.448]
[1643838888358,0.18308147,2630.3,2629.3,2.59112]
[1643838888610,0.18827689,2630.3,2629.3,0.45194391]
[1643838889511,0.18308147,2630.3,2629.3,0.448]
[1643838889712,0.00523556,2629.9,2629.3,3.80802722]
[1643838889917,0.00523556,2629.9,2629.5,0.00672171]
[1643838890114,0.00523556,2629.9,2629.6,2.3485447]
[1643838890311,3.556e-05,2629.9,2629.6,3.4617391]
[1643838890511,3.556e-05,2629.9,2629.7,0.4131944]
[1643838890712,0.21283691,2630.6,2629.8,6.048]
[1643838890911,0.21297187,2631.0,2630.1,0.9503504]
[1643838890912,0.19,2631.0,2630.1,0.9503504]
[1643838891113,0.00275099,2630.9,2630.2,0.45583056]
[1643838891312,0.00275099,2630.9,2630.1,0.03868928]
[1643838891612,0.00275099,2630.9,2630.3,0.448]
[1643838891814,0.19,2631.5,2630.3,0.448]
[1643838891815,0.00275099,2631.2,2630.3,0.448]
[1643838892012,0.00275099,2631.2,2630.4,0.95019]
[1643838892252,0.00275099,2631.2,2630.5,0.448]
[1643838892453,0.8685867,2631.3,2630.5,0.448]
[1643838893051,0.19275099,2631.3,2630.5,1.3982111]
[1643838893252,0.19275099,2631.6,2630.6,0.95014]
[1643838893452,0.19275099,2631.6,2630.7,0.448]
[1643838893453,0.0054064,2631.0,2630.7,0.448]
[1643838894250,0.94307906,2631.3,2630.7,0.448]
[1643838894652,0.00540642,2631.0,2630.7,0.448]
[1643838895255,0.00540642,2631.0,2630.7,0.5611944]
[1643838895551,0.00275099,2631.2,2630.7,0.5611944]
[1643838895751,1.61358228,2631.9,2630.7,1.5611944]
[1643838896027,1.61358228,2631.9,2630.7,2.27757611]
[1643838896028,0.21240417,2631.9,2630.7,2.27757611]
[1643838896214,0.21240417,2631.9,2630.7,3.22757611]
[1643838896414,1.00275099,2631.9,2631.0,0.9500305]
[1643838896613,1.00275099,2631.9,2630.2,0.01273697]
[1643838896614,1.99085362,2631.8,2630.2,0.01273697]
[1643838896812,1.99085362,2631.8,2630.4,0.448]
[1643838896813,1.61360461,2631.7,2630.4,0.448]
[1643838897212,0.00244069,2631.2,2630.4,0.448]
[1643838897414,0.00244069,2631.2,2630.4,0.5611944]
[1643838897714,0.00244069,2631.2,2630.5,2.8505308]
[1643838897914,0.00244069,2631.2,2630.7,0.83522625]
[1643838898117,0.00244069,2631.2,2630.8,0.448]
[1643838898415,0.00244069,2631.2,2630.8,0.56558566]
[1643838898614,0.00244069,2631.2,2630.9,1.0631459]
[1643838898915,0.00566372,2631.5,2631.0,2.89077609]
[1643838899116,0.00275099,2632.1,2631.7,0.93328982]
[1643838899314,0.02265079,2632.2,2631.8,0.448]
[1643838899516,0.02265079,2632.2,2631.9,0.448]
[1643838899756,0.02265079,2632.2,2631.9,0.748]
[1643838899955,0.02265079,2632.2,2631.9,0.75399517]
[1643838900155,0.02265079,2632.2,2631.9,1.05399517]
[1643838900355,0.00275099,2632.6,2631.9,1.05399517]
[1643838900556,13.97676825,2633.7,2632.4,0.90238133]
[1643838900557,0.00275099,2632.9,2632.4,0.90238133]
[1643838900759,0.02265372,2632.6,2632.5,1.3975288]
[1643838900959,5.372e-05,2632.6,2632.5,6.9975288]
[1643838901155,0.1899,2633.6,2632.7,0.00947709]
[1643838901156,0.00275099,2633.5,2632.7,0.00947709]
[1643838901356,0.00275099,2633.5,2632.8,0.448]
[1643838901955,0.00275099,2633.9,2632.8,0.748]
[1643838902355,0.83908926,2633.9,2632.8,0.748]
[1643838902656,0.1897,2634.3,2633.2,0.01216172]
[1643838902858,1.0792267,2634.4,2633.3,0.448]
[1643838902859,0.00393184,2633.5,2633.3,0.448]
[1643838903611,0.00393184,2633.5,2632.9,1.0]
[1643838903811,0.00393184,2633.5,2632.9,1.748]
[1643838904013,0.1897,2634.0,2633.1,0.9492961]
[1643838904312,0.00393621,2633.3,2633.1,0.9492961]
[1643838904512,0.00393621,2633.3,2633.2,6.348]
[1643838904717,3.621e-05,2633.3,2633.2,6.348]
[1643838904913,3.621e-05,2633.3,2633.2,7.348]
[1643838905115,0.1897,2634.7,2633.3,5.6]
[1643838905316,0.1897,2635.2,2634.5,0.01240714]
[1643838905514,6.95968286,2636.5,2634.5,0.01652733]
[1643838905515,0.04149491,2634.6,2634.5,0.01652733]
[1643838905715,6.95968286,2636.5,2634.6,5.5914]
[1643838905716,0.1897,2636.4,2634.6,5.5914]
[1643838905914,0.1897,2636.4,2635.3,0.35771541]
[1643838906113,0.1897,2636.4,2635.4,0.448]
[1643838906411,0.1897,2636.4,2635.5,0.448]
[1643838906615,0.00407679,2636.0,2635.6,0.45361707]
[1643838906810,0.00407679,2636.0,2635.7,0.448]
[1643838907266,0.19,2637.2,2635.7,0.448]
[1643838907267,0.1896,2637.3,2635.8,5.91428614]
[1643838907463,0.1896,2637.3,2636.6,0.85249115]
[1643838907762,0.1896,2637.3,2636.5,0.2787]
[1643838907763,0.1895,2637.5,2636.5,0.88710417]
[1643838907968,0.01204738,2637.3,2636.6,0.448]
[1643838908163,0.1895,2637.5,2636.6,0.448]
[1643838908362,0.72572834,2637.9,2636.6,1.6022]
[1643838908562,0.01217266,2637.3,2636.6,1.6022]
[1643838908763,0.01217266,2637.3,2636.6,1.9022]
[1643838909062,0.1895,2638.0,2636.6,1.9022]
[1643838909261,1.0292267,2637.6,2636.6,2.9022]
[1643838909464,1.0292267,2637.6,2636.8,0.94774]
[1643838909662,1.0292267,2637.6,2636.9,0.64160162]
[1643838909866,1.0292267,2637.6,2637.1,5.599]
[1643838910063,0.1895,2638.5,2637.2,0.448]
[1643838910265,0.1895,2638.5,2637.3,2.37602288]
[1643838910564,0.01,2638.6,2637.4,0.64450997]
[1643838911006,0.01,2638.6,2637.4,1.64450997]
[1643838911305,0.01,2638.6,2638.1,1.0]
[1643838911511,0.01,2638.6,2637.4,0.23078748]
[1643838911512,0.02268135,2638.5,2638.2,0.448]
[1643838911712,0.02268135,2638.5,2636.9,1.8953072]
[1643838911713,4.4,2638.4,2636.9,1.8953072]
[1643838911907,0.39104663,2638.3,2637.0,0.448]
[1643838912108,0.1895,2638.3,2637.0,0.448]
[1643838912510,0.00394844,2637.5,2637.0,2.52402288]
[1643838912709,4.844e-05,2637.5,2637.1,0.94755]
[1643838913007,4.844e-05,2637.5,2637.2,0.748]
[1643838913210,4.844e-05,2637.5,2637.2,1.048]
[1643838913809,0.00572003,2637.5,2637.2,1.048]
[1643838914309,0.00572003,2637.5,2637.2,0.448]
[1643838914511,0.18608166,2637.3,2636.8,0.448]
[1643838914785,2.34802856,2636.9,2636.8,0.448]
[1643838914972,0.20191279,2637.2,2635.6,4.01945]
[1643838914973,0.01241279,2637.2,2636.2,0.448]
[1643838915175,0.1895,2637.4,2636.3,0.45217423]
[1643838915176,0.85416649,2637.3,2636.3,0.45217423]
[1643838915372,0.1895,2637.2,2636.4,0.448]
[1643838915573,1.04366649,2637.3,2636.4,0.448]
[1643838915975,0.22461389,2637.0,2636.4,0.448]
[1643838916174,0.20258227,2636.6,2636.4,0.448]
[1643838916382,0.67765459,2636.9,2636.4,0.448]
[1643838916383,0.86715459,2636.9,2636.4,0.448]
[1643838916576,0.74742696,2636.9,2636.4,0.448]
[1643838917477,0.00530976,2636.8,2636.4,0.448]
[1643838918505,0.00274914,2637.0,2636.4,0.448]
[1643838918712,0.00539129,2636.7,2636.4,0.748]
[1643838919006,0.00539129,2636.7,2636.4,1.048]
[1643838919307,9.129e-05,2636.7,2636.4,1.048]
[1643838919509,0.0215614,2637.2,2636.5,0.1131944]
[1643838919711,0.00274914,2637.6,2636.6,0.448]
[1643838920109,0.20249853,2638.5,2636.6,0.8611944]
[1643838920110,0.00274914,2637.7,2636.6,0.8611944]
[1643838920313,0.00274914,2637.7,2636.9,0.78119006]
[1643838920508,0.00274914,2637.7,2636.6,0.87414024]
[1643838920509,0.00274914,2637.7,2637.0,0.448]
[1643838920711,0.00274914,2638.1,2637.1,0.448]
[1643838920910,0.19827918,2637.9,2637.1,0.448]
[1643838921308,0.19224914,2638.1,2637.1,0.748]
[1643838921707,0.01223971,2637.9,2637.1,0.748]
[1643838921908,0.1895,2637.8,2637.1,0.448]
[1643838922356,0.20291467,2637.8,2637.1,0.748]
[1643838922557,0.1895,2637.7,2637.1,0.748]
[1643838922757,0.1959597,2637.4,2637.1,0.448]
[1643838922966,0.2016219,2637.7,2636.7,0.448]
[1643838923159,0.00274914,2637.3,2636.7,0.448]
[1643838923560,0.1895,2637.2,2636.7,0.448]
[1643838923760,0.00567796,2637.4,2636.7,0.448]
[1643838923959,0.1895,2637.2,2636.7,0.448]
[1643838924160,0.73446761,2637.2,2636.7,0.448]
[1643838924360,0.1895,2637.1,2636.7,0.448]
[1643838924560,0.1895,2637.1,2635.8,0.9481507]
[1643838924561,0.19144211,2637.0,2635.8,0.9481507]
[1643838924763,0.1895,2636.9,2636.4,0.00541601]
[1643838924960,0.19419125,2637.0,2636.4,0.00541601]
[1643838924961,0.21727706,2637.0,2636.4,0.00541601]
[1643838925160,0.0216103,2636.9,2636.4,0.00541601]
[1643838925361,0.1895,2636.8,2636.4,0.00541601]
[1643838925562,0.1895,2636.8,2635.7,0.448]
[1643838925563,0.0216103,2636.9,2635.7,0.448]
[1643838925760,0.00274914,2636.7,2635.7,0.448]
[1643838926022,0.00274914,2636.7,2636.4,0.00541601]
[1643838926212,0.74129424,2636.8,2636.4,0.00541601]
[1643838926411,0.00567822,2636.8,2636.4,0.00541601]
[1643838926612,0.00053087,2636.8,2636.4,0.00541601]
[1643838926813,0.1895,2636.9,2636.0,0.748]
[1643838927012,0.02820978,2637.6,2636.0,0.748]
[1643838927013,0.1895,2637.5,2636.0,1.048]
[1643838927312,0.00567814,2636.8,2636.4,0.00541601]
[1643838927812,0.00567814,2636.8,2636.4,0.75341601]
[1643838928020,0.19224914,2637.4,2636.4,0.75341601]
[1643838928021,0.00274914,2637.4,2636.4,0.748]
[1643838928215,0.1895,2637.3,2636.4,0.748]
[1643838928413,0.00405345,2636.9,2636.4,0.748]
[1643838929214,0.00274914,2637.2,2636.4,0.748]
[1643838929414,0.00405352,2636.9,2636.4,1.048]
[1643838930352,0.00274914,2637.3,2636.4,1.048]
[1643838930553,0.00274914,2637.3,2636.4,3.63218081]
[1643838930760,0.005678,2636.9,2636.5,0.00542865]
[1643838930954,0.005678,2636.9,2636.5,1.00542865]
[1643838931155,0.005678,2636.9,2636.6,0.448]
[1643838931555,0.22752783,2637.6,2636.6,0.448]
[1643838931556,0.20482149,2637.6,2636.6,0.748]
[1643838931755,0.20482149,2637.6,2636.6,3.22053864]
[1643838931958,0.20482149,2637.6,2636.6,3.23073008]
[1643838931959,0.00567816,2636.9,2636.6,3.23073008]
[1643838932155,0.00567816,2636.9,2636.5,0.33923639]
[1643838932354,0.00567816,2636.9,2636.6,0.448]
[1643838932554,0.00567816,2636.9,2636.3,2.65572238]
[1643838932555,0.00567816,2636.9,2636.7,0.448]
[1643838932754,0.03802845,2637.6,2636.8,0.448]
[1643838932755,0.20482149,2637.6,2636.8,0.448]
[1643838932956,0.20482149,2637.6,2636.9,0.448]
[1643838933154,0.20482149,2637.6,2637.0,0.448]
[1643838933155,0.20207235,2637.6,2637.0,0.448]
[1643838933807,0.20207235,2637.6,2636.5,2.92157262]
[1643838934004,0.20207235,2637.6,2636.5,0.448]
[1643838934005,0.00274914,2637.5,2636.5,0.448]
[1643838934206,0.00274914,2637.5,2636.6,1.0]
[1643838934406,0.00274914,2637.5,2636.6,0.6]
[1643838934605,0.00274914,2637.5,2636.5,0.748]
[1643838934805,0.00274914,2637.5,2636.5,1.048]
[1643838935406,0.01532149,2637.6,2636.5,1.048]
[1643838935606,0.00567811,2637.1,2636.5,1.05341518]
[1643838935808,0.00567811,2637.1,2636.5,0.45341518]
[1643838936011,0.00567811,2637.1,2636.5,0.00541518]
[1643838936012,0.21776872,2636.8,2636.5,0.00541518]
[1643838936606,0.21776872,2636.8,2635.7,0.448]
[1643838936806,0.21776872,2636.8,2636.5,0.00541518]
[1643838936807,0.00274914,2636.7,2636.5,0.00541518]
[1643838937361,0.96033408,2636.8,2636.5,0.00541518]
[1643838937560,0.22344694,2636.8,2636.5,0.00541518]
[1643838937761,0.1895,2637.1,2635.7,0.448]
[1643838937960,0.00274914,2636.7,2636.5,0.00541518]
[1643838938566,0.00567815,2636.8,2636.5,0.00541518]
[1643838938761,0.95383104,2636.8,2636.5,0.00541518]
[1643838938962,0.18284344,2636.9,2635.7,0.448]
[1643838939163,0.00274914,2636.7,2636.5,0.00541518]
[1643838939762,0.00567822,2636.8,2636.5,0.00541518]
[1643838940163,0.85864452,2636.9,2635.7,1.048]
[1643838940165,0.16712339,2636.6,2635.7,1.048]
[1643838940364,0.16712339,2636.6,2636.5,0.00541518]
[1643838940566,2.31712339,2636.6,2636.5,0.00541518]
[1643838940763,2.15,2636.6,2636.5,0.00541518]
[1643838941221,2.15,2636.6,2635.5,0.448]
[1643838941419,0.00274914,2636.5,2635.4,3.7925993]
[1643838941719,0.93275394,2636.5,2636.4,0.00541528]
[1643838941919,1.10188226,2636.5,2636.4,0.00541528]
[1643838942319,0.00274965,2636.5,2636.4,0.00541528]
[1643838942623,0.1895,2636.8,2635.4,7.4963793]
[1643838942819,0.1895,2636.8,2636.3,0.00541549]
[1643838942820,0.19517792,2636.8,2636.3,0.00541549]
[1643838943021,1.00274965,2636.7,2636.3,0.00541549]
[1643838943222,0.01262362,2636.4,2634.3,5.1894577]
[1643838943422,0.92737339,2635.5,2634.3,4.7414577]
[1643838943621,0.75920398,2635.5,2634.3,4.7414577]
[1643838943824,0.76018326,2635.5,2634.3,3.7928977]
[1643838944221,0.76018326,2635.5,2634.2,1.75503604]
[1643838944222,0.00274965,2635.4,2634.2,0.01272508]
[1643838944621,0.20832176,2635.1,2634.2,0.01272508]
[1643838944863,0.20832176,2635.1,2633.6,5.74032738]
[1643838944864,0.00274965,2635.0,2633.6,5.74032738]
[1643838945263,0.00274965,2635.0,2634.1,0.01226993]
[1643838945461,0.00274965,2635.3,2634.2,0.448]
[1643838945662,0.00274965,2635.3,2634.2,0.5611944]
[1643838946061,0.16435354,2635.1,2634.3,0.1131944]
[1643838946365,0.1897,2635.7,2634.3,0.448]
[1643838947161,0.00274965,2635.6,2634.3,0.448]
[1643838947362,0.18106526,2635.4,2634.3,0.448]
[1643838947562,1.10266568,2635.3,2634.3,0.448]
[1643838947760,1.10541533,2635.3,2634.9,0.00540492]
[1643838947962,0.00274965,2635.3,2634.9,0.00540492]
[1643838948163,0.19244965,2635.6,2634.9,0.00540492]
[1643838948364,0.00274965,2635.6,2634.9,0.00540492]
[1643838948815,0.27639993,2635.7,2634.9,0.00540492]
[1643838949018,0.85222797,2635.6,2635.1,0.00540441]
[1643838949415,1.04192797,2635.6,2635.1,0.00540441]
[1643838949815,1.04192797,2635.6,2634.3,0.448]
[1643838950016,0.00274965,2635.5,2634.3,0.448]
[1643838950217,0.16862915,2635.5,2635.2,0.0054042]
[1643838950520,0.36107972,2635.5,2635.2,0.0054042]
[1643838950717,1.60822635,2635.4,2635.2,0.0054042]
[1643838950919,0.3797,2635.3,2635.2,0.0054042]
[1643838951219,0.01634653,2634.8,2633.8,0.94888]
[1643838951521,0.01682616,2634.9,2633.8,0.94888]
[1643838951717,0.1897,2635.1,2633.8,0.94888]
[1643838951917,0.20817734,2635.1,2633.8,0.94888]
[1643838952117,0.20817734,2635.1,2633.9,0.3]
[1643838952560,0.78267418,2634.8,2634.3,0.0042032]
[1643838952759,0.78267418,2634.8,2633.4,0.96121639]
[1643838952760,0.80315331,2634.8,2633.4,0.96121639]
[1643838953359,0.78267418,2634.8,2633.4,0.96121639]
[1643838953961,0.72201034,2634.4,2633.4,0.96121639]
[1643838954166,10.14345417,2635.1,2633.5,0.3]
[1643838954363,0.41241727,2635.1,2633.5,0.3]
[1643838954561,0.5866741,2635.1,2633.5,0.3]
[1643838955261,0.75615335,2634.6,2633.5,0.3]
[1643838956114,0.16333063,2634.3,2633.9,0.00539636]
[1643838956318,0.1897,2634.5,2633.9,0.00539636]
[1643838956819,0.2102212,2634.5,2633.9,0.00539636]
[1643838957013,0.2102212,2634.5,2633.0,3.74221773]
[1643838957014,0.2102212,2634.5,2633.0,2.79298773]
[1643838957214,0.2102212,2634.5,2634.1,0.0016258]
[1643838957215,0.1897,2634.5,2634.1,0.0016258]
[1643838957414,0.1897,2634.6,2634.1,0.0016258]
[1643838957815,0.1897,2634.7,2634.1,0.0016258]
[1643838958215,0.1897,2634.7,2633.1,1.0]
[1643838958414,0.1897,2634.7,2633.1,1.3]
[1643838958615,0.21087944,2634.4,2634.2,0.00162574]
[1643838959216,0.3797,2634.7,2634.2,0.00162574]
[1643838959421,0.19,2634.7,2634.0,0.01202921]
[1643838959617,6.2639,2635.2,2634.1,0.448]
[1643838959618,6.4536,2635.2,2634.1,0.448]
[1643838959859,6.4536,2635.2,2634.2,0.00162574]
[1643838959860,6.2639,2635.2,2634.2,0.00162574]
[1643838960061,0.1897,2635.5,2634.3,0.448]
[1643838960263,0.1897,2635.5,2634.3,0.748]
[1643838960264,0.19138498,2635.4,2634.3,0.748]
[1643838960661,0.19138498,2635.4,2634.4,0.86645446]
[1643838960861,0.19245057,2635.6,2634.5,0.448]
[1643838961061,0.02274226,2635.4,2634.5,0.448]
[1643838961460,0.02274226,2635.4,2635.3,0.01214193]
[1643838961662,0.02274226,2635.4,2635.3,1.22444193]
[1643838961862,0.02274226,2635.4,2635.3,1.52444193]
[1643838962063,0.00275057,2636.1,2635.3,1.52444193]
[1643838962064,0.00275057,2636.1,2635.3,1.82444193]
[1643838962261,0.19245057,2636.4,2635.3,1.82444193]
[1643838962460,0.00275057,2636.4,2635.3,1.82444193]
[1643838962960,0.3795,2636.9,2635.3,1.82444193]
[1643838962961,0.18875609,2636.5,2635.3,2.82444193]
[1643838963161,0.18875609,2636.5,2635.3,1.82444193]
[1643838963361,0.00275057,2636.4,2635.4,1.0]
[1643838963612,0.00275057,2636.4,2635.5,0.448]
[1643838963816,0.00275057,2636.4,2635.6,1.64853549]
[1643838964013,0.19,2637.3,2635.6,1.94853549]
[1643838964014,0.00275057,2636.7,2635.6,1.94853549]
[1643838964214,0.00275057,2636.7,2635.6,3.20081829]
[1643838964414,0.00275057,2636.7,2635.7,1.0]
[1643838964718,0.00275057,2637.0,2636.0,0.89386586]
[1643838964914,0.00275057,2637.0,2636.1,0.448]
[1643838965113,0.00275057,2637.1,2636.1,0.448]
[1643838965913,0.00567834,2636.7,2636.1,1.39619]
[1643838966714,0.02546053,2637.1,2636.1,2.39619]
[1643838966715,0.21880627,2636.8,2636.1,2.39619]
[1643838966915,0.21880627,2636.8,2636.1,1.448]
[1643838967117,0.00567847,2636.5,2636.1,1.448]
[1643838967365,0.00567847,2636.5,2636.1,0.448]
[1643838968064,0.2003841,2636.4,2636.1,0.448]
[1643838968364,0.2003841,2636.4,2635.6,0.448]
[1643838968365,0.18673681,2636.0,2635.6,0.448]
[1643838968563,0.18673681,2636.0,2635.1,1.89685]
[1643838968564,0.18673681,2636.0,2635.3,0.448]
[1643838969165,0.00275057,2636.4,2635.9,0.01279821]
[1643838969364,0.00275057,2636.4,2636.0,0.448]
[1643838969564,0.02198441,2636.2,2636.0,0.448]
[1643838970364,0.88262652,2636.8,2636.0,0.448]
[1643838970365,0.00275057,2636.7,2636.0,0.748]
[1643838970766,0.0040607,2636.5,2636.0,0.748]
[1643838971210,0.0040607,2636.5,2636.1,0.00382361]
[1643838971413,0.0040607,2636.5,2636.2,0.448]
[1643838971607,0.00275057,2637.2,2636.2,0.448]
[1643838971808,0.00535536,2636.5,2636.2,0.448]
[1643838972614,0.19421845,2636.4,2635.6,1.89655]
[1643838972809,0.19225057,2636.7,2635.5,0.448]
[1643838972810,0.01213885,2636.7,2635.5,0.448]
[1643838973309,0.00535543,2636.5,2635.5,0.45232997]
[1643838973509,0.87816792,2636.4,2635.5,0.45232997]
[1643838974108,0.01213885,2636.7,2635.6,2.0303722]
[1643838974109,0.00275057,2636.3,2635.6,2.0303722]
[1643838974311,0.00275057,2636.3,2635.7,0.448]
[1643838974513,6.51834509,2638.1,2635.8,5.35]
[1643838974764,6.51834509,2638.1,2635.9,8.39044181]
[1643838974765,0.03874686,2637.1,2635.9,8.39044181]
[1643838974966,0.1896,2637.3,2636.0,2.81464374]
[1643838975170,0.1896,2637.3,2636.3,0.74624311]
[1643838975367,0.1895,2637.5,2636.4,0.448]
[1643838975568,1.15716712,2638.1,2636.4,0.45194422]
[1643838975569,0.1895,2637.6,2636.4,0.45194422]
[1643838975769,0.1895,2637.8,2636.4,0.75463862]
[1643838975966,0.1895,2638.0,2636.4,0.75463862]
[1643838976166,0.1895,2638.0,2636.4,1.75463862]
[1643838976465,0.94930424,2637.7,2636.4,0.75463862]
[1643838976765,0.94930424,2637.7,2636.5,0.94808]
[1643838976969,0.94930424,2637.7,2636.6,0.448]
[1643838977168,0.77176932,2637.7,2636.6,0.448]
[1643838977769,0.1895,2638.0,2636.6,0.448]
[1643838977969,0.1895,2638.0,2636.6,2.88699632]
[1643838978268,0.00405294,2637.3,2637.0,0.3]
[1643838978511,0.00405294,2637.3,2637.1,0.448]
[1643838978913,0.00405294,2637.3,2636.1,3.80451048]
[1643838978914,0.19,2637.4,2636.1,0.1895]
[1643838978915,1.26606602,2636.8,2636.1,0.1895]
[1643838979111,1.26606602,2636.8,2636.0,1.89641]
[1643838979311,1.26606602,2636.8,2636.1,0.448]
[1643838980210,1.26606602,2636.8,2636.3,0.00546877]
[1643838980413,1.26606602,2636.8,2636.4,0.448]
[1643838980811,1.26606602,2636.8,2636.3,0.00546877]
[1643838981211,1.26606602,2636.8,2635.8,0.448]
[1643838981212,0.8858736,2636.5,2635.8,0.448]
[1643838981511,0.8858736,2636.5,2635.7,1.89653]
[1643838981512,0.6953586,2636.5,2636.4,0.00546856]
[1643838981810,1.45556602,2636.8,2636.4,0.00546856]
[1643838982011,1.26606602,2636.8,2636.4,0.00546856]
[1643838982460,1.26606602,2636.8,2635.8,0.149273]
[1643838982662,1.02676821,2636.7,2636.5,0.0042414]
[1643838983660,1.01254555,2636.7,2635.5,0.149273]
[1643838983862,1.01254555,2636.7,2636.5,0.0042414]
[1643838984861,1.01254555,2636.7,2635.6,0.149273]
[1643838984862,2.73564743,2636.6,2635.6,0.149273]
[1643838985263,2.73564743,2636.6,2636.5,0.0042414]
[1643838986116,6.10209797,2636.6,2635.6,0.149273]
[1643838986316,0.1895,2636.5,2636.4,0.00451757]
[1643838986912,5.8895,2636.5,2636.4,0.00451757]
[1643838987212,5.8895,2636.5,2635.6,0.149273]
[1643838987213,6.27431358,2636.5,2635.6,0.149273]
[1643838987413,0.22360259,2635.8,2635.6,0.149273]
[1643838987612,6.073301,2636.5,2635.6,0.149273]
[1643838988013,0.1896,2636.4,2635.6,0.149273]
[1643838988216,0.1895,2636.3,2635.6,0.149273]
[1643838988413,0.93951312,2636.1,2635.6,0.149273]
[1643838988614,0.93951312,2636.1,2634.8,3.05171736]
[1643838988615,0.16674878,2635.9,2634.9,0.149273]
[1643838988815,0.16674878,2635.9,2635.1,0.149273]
[1643838989016,1.12921312,2636.1,2635.1,0.149273]
[1643838989215,1.07921312,2636.1,2635.1,0.149273]
[1643838989860,0.88951312,2636.1,2635.1,0.149273]
[1643838990060,0.16042167,2635.8,2635.5,0.00164216]
[1643838990460,1.07911312,2636.1,2635.5,0.00164216]
[1643838990865,1.07911312,2636.1,2635.1,0.149273]
[1643838991063,1.07911312,2636.1,2635.7,0.00546296]
[1643838991064,0.1896,2636.1,2635.7,0.00546296]
[1643838991262,1.0,2636.5,2635.7,0.00546296]
[1643838991263,0.1896,2636.3,2635.7,0.00546296]
[1643838991465,0.18028371,2636.2,2635.7,0.00546296]
[1643838992064,0.8723739,2636.1,2635.1,0.149273]
[1643838992364,0.8723739,2636.1,2635.8,0.00546265]
[1643838993164,0.8723739,2636.1,2635.1,0.149273]
[1643838993367,1.0619739,2636.1,2635.1,0.10473565]
[1643838993615,1.0619739,2636.1,2635.8,0.00546265]
[1643838994012,0.1896,2635.9,2635.8,0.00546265]
[1643838994213,1.0619739,2636.1,2635.8,0.00546265]
[1643838994413,1.0619739,2636.1,2635.1,0.10473565]
[1643838994414,3.1396,2635.9,2635.1,0.10473565]
[1643838994617,2.95,2635.9,2635.1,0.10473565]
[1643838994813,2.95,2635.9,2635.7,0.00163889]
[1643838995413,0.1896,2636.0,2635.7,0.00163889]
[1643838995614,0.3793,2636.3,2635.1,0.10473565]
[1643838995816,0.3793,2636.3,2635.3,0.10473565]
[1643838995817,0.1896,2636.3,2635.3,0.10473565]
[1643838996016,0.1896,2636.3,2635.7,0.0054493]
[1643838996914,0.1896,2636.3,2635.3,0.10473565]
[1643838997115,0.00566689,2636.0,2635.7,0.0054493]
[1643838998168,0.00566689,2636.0,2635.3,0.10473565]
[1643838998369,0.00566689,2636.0,2635.7,0.0054493]
[1643838998768,1.0532575,2636.0,2635.7,0.0054493]
[1643838998970,0.00566689,2636.0,2635.7,0.0054493]
[1643838999469,0.00566689,2636.0,2635.3,0.10473565]
[1643838999670,0.00566689,2636.0,2635.8,0.01274344]
[1643838999867,0.00566689,2636.0,2635.9,5.90273565]
[1643839000068,1.26606602,2636.8,2636.1,0.10473565]
[1643839000069,1.2501208,2636.8,2636.1,0.10473565]
[1643839000370,1.2501208,2636.8,2636.1,1.10473565]
[1643839000868,1.2501208,2636.8,2636.1,0.10473565]
[1643839001123,1.2501208,2636.8,2636.2,0.10473565]
[1643839002021,1.2501208,2636.8,2636.4,0.00147178]
[1643839002919,1.2501208,2636.8,2636.2,0.10473565]
[1643839003220,1.2501208,2636.8,2636.5,0.00147173]
[1643839004319,1.25561527,2636.8,2636.5,0.00490575]
[1643839004520,1.19093407,2636.8,2636.5,0.00490575]
[1643839004775,0.00275245,2637.3,2636.7,5.70473565]
[1643839004971,0.0219728,2637.4,2636.9,0.10473565]
[1643839005170,0.0219728,2637.4,2637.1,0.10473565]